bitfinex-derivatives/quotes_BTCF0:USTF0_20240913
["timestamp","ask_amount","ask_price","bid_price","bid_amount"]
[1726233866186,1.50072,57787.0,57786.0,0.001]
[1726233866783,0.38156,57787.0,57786.0,0.001]
[1726233866983,1.50072,57787.0,57786.0,0.001]
[1726233867185,0.38156,57787.0,57786.0,0.001]
[1726233869187,0.173054,57782.0,57781.0,0.004]
[1726233869390,0.12,57782.0,57779.0,0.09555217]
[1726233869988,0.08653,57780.0,57779.0,0.09555217]
[1726233870590,0.08553,57780.0,57779.0,0.09555217]
[1726233871986,0.17206,57780.0,57779.0,0.09555217]
[1726233872191,0.17306,57780.0,57779.0,0.09655217]
[1726233872691,0.17406,57780.0,57779.0,0.09655217]
[1726233872890,0.08753,57780.0,57779.0,0.09655217]
[1726233874892,0.09683485,57780.0,57779.0,0.09655217]
[1726233875378,0.09683485,57780.0,57779.0,0.09555217]
[1726233876089,0.01130485,57780.0,57779.0,0.09555217]
[1726233876289,0.002,57780.0,57779.0,0.74941617]
[1726233876789,0.1036334,57788.0,57779.0,1.95514817]
[1726233876991,0.004,57790.0,57789.0,0.086517]
[1726233876992,0.01335106,57790.0,57789.0,0.086517]
[1726233877191,0.00935106,57790.0,57789.0,0.206517]
[1726233877692,0.1036334,57795.0,57793.0,0.086509]
[1726233877693,0.08651,57794.0,57793.0,0.086509]
[1726233878215,0.20651,57794.0,57793.0,0.086509]
[1726233878585,0.08651,57794.0,57793.0,0.086509]
[1726233879286,0.08751,57794.0,57793.0,0.086509]
[1726233879979,0.20751,57794.0,57793.0,0.086509]
[1726233881891,0.21652708,57794.0,57793.0,0.086509]
[1726233882098,0.21752708,57794.0,57793.0,0.087509]
[1726233885290,0.25740621,57794.0,57793.0,0.087509]
[1726233885691,0.25740352,57794.0,57793.0,0.087509]
[1726233887201,0.086511,57793.0,57792.0,0.447312]
[1726233887390,0.12638744,57793.0,57792.0,0.447312]
[1726233888095,0.24733626,57793.0,57792.0,0.447312]
[1726233889490,0.12638744,57793.0,57792.0,0.447312]
[1726233889703,0.12738744,57793.0,57792.0,0.448312]
[1726233890008,0.12737663,57793.0,57792.0,0.448312]
[1726233890301,0.30039863,57793.0,57792.0,0.3618]
[1726233890595,0.42234745,57793.0,57792.0,0.3618]
[1726233890800,0.34763918,57793.0,57792.0,0.3618]
[1726233891488,0.48440452,57793.0,57792.0,0.001]
[1726233892094,0.173036,57788.0,57786.0,0.004]
[1726233892398,0.086521,57786.0,57785.0,0.567323]
[1726233892598,0.08652,57787.0,57786.0,0.086521]
[1726233893400,0.08652,57787.0,57786.0,0.13831114]
[1726233893996,0.08752,57787.0,57786.0,0.13831114]
[1726233894496,0.08752,57787.0,57786.0,0.086521]
[1726233894999,0.08852,57787.0,57786.0,0.087521]
[1726233896202,0.08752,57787.0,57786.0,0.448321]
[1726233896400,0.08852,57787.0,57786.0,0.448321]
[1726233896594,0.08752,57787.0,57786.0,0.447321]
[1726233896796,0.08852,57787.0,57786.0,0.448321]
[1726233897494,0.08852,57787.0,57786.0,0.50000932]
[1726233897689,0.08852,57787.0,57786.0,0.448321]
[1726233898693,0.08852,57787.0,57786.0,0.50004001]
[1726233900292,0.08852,57787.0,57786.0,0.448321]
[1726233900604,0.17504,57787.0,57786.0,0.3618]
[1726233901302,0.08852,57787.0,57786.0,0.3618]
[1726233901607,0.17504,57787.0,57786.0,0.3618]
[1726233901908,0.08852,57787.0,57786.0,0.3618]
[1726233902598,0.17504,57787.0,57786.0,0.3618]
[1726233903407,0.17504,57787.0,57786.0,0.448321]
[1726233903408,0.08852,57787.0,57786.0,0.448321]
[1726233903710,0.17504,57787.0,57786.0,0.13927676]
[1726233903899,0.17404,57787.0,57786.0,0.087521]
[1726233904095,0.17504,57787.0,57786.0,0.087521]
[1726233904603,0.173042,57786.0,57785.0,0.05175576]
[1726233904911,0.173042,57786.0,57785.0,0.086523]
[1726233905807,0.173046,57785.0,57784.0,0.06906029]
[1726233906009,0.293046,57785.0,57784.0,0.06906029]
[1726233906206,0.293046,57785.0,57784.0,0.15558429]
[1726233907605,0.293046,57785.0,57784.0,0.06906029]
[1726233908003,0.294046,57785.0,57784.0,0.06906029]
[1726233908514,0.294046,57785.0,57784.0,0.001]
[1726233908706,0.295046,57785.0,57784.0,0.001]
[1726233909210,0.295046,57785.0,57784.0,0.087524]
[1726233910009,0.295046,57785.0,57784.0,0.448324]
[1726233910904,0.208523,57785.0,57784.0,0.448324]
[1726233911109,0.088523,57785.0,57784.0,0.448324]
[1726233911415,0.002,57785.0,57784.0,0.448324]
[1726233911915,0.002,57785.0,57784.0,0.087524]
[1726233912107,0.002,57785.0,57784.0,0.448324]
[1726233912417,0.001,57785.0,57784.0,0.447324]
[1726233912711,0.002,57785.0,57784.0,0.448324]
[1726233914722,0.088523,57785.0,57784.0,0.448324]
[1726233916307,0.088523,57785.0,57784.0,0.64996057]
[1726233916720,0.002,57785.0,57784.0,0.65017825]
[1726233916914,0.002,57785.0,57784.0,0.85670225]
[1726233917110,0.002,57785.0,57784.0,0.92260225]
[1726233917825,0.002,57785.0,57784.0,0.92255043]
[1726233918014,0.002,57785.0,57784.0,0.92255077]
[1726233918420,0.002,57785.0,57784.0,0.83603037]
[1726233918914,0.002,57785.0,57784.0,0.93962044]
[1726233919120,0.002,57785.0,57784.0,0.83603037]
[1726233919629,0.122,57785.0,57784.0,0.56366786]
[1726233920426,0.208523,57785.0,57784.0,0.56366786]
[1726233922420,0.122,57785.0,57784.0,0.56366786]
[1726233922718,0.002,57785.0,57784.0,0.56366786]
[1726233923628,0.002,57785.0,57784.0,0.448324]
[1726233924330,0.01128959,57785.0,57784.0,0.448324]
[1726233924524,0.09781259,57785.0,57784.0,0.448324]
[1726233925520,0.002,57785.0,57784.0,0.534848]
[1726233925717,0.002,57785.0,57784.0,0.6502551]
[1726233926224,0.002,57785.0,57784.0,1.11384517]
[1726233927630,0.002,57785.0,57784.0,1.0102551]
[1726233928027,0.002,57785.0,57784.0,1.0099708]
[1726233928424,0.002,57785.0,57784.0,0.9234468]
[1726233928739,0.088523,57785.0,57784.0,0.448324]
[1726233929232,0.088523,57785.0,57784.0,0.3618]
[1726233929538,0.175046,57785.0,57784.0,0.3618]
[1726233932034,0.175046,57785.0,57784.0,0.448324]
[1726233933542,0.21503752,57785.0,57784.0,0.448324]
[1726233934331,0.21503752,57785.0,57784.0,0.087524]
[1726233934529,0.21503752,57785.0,57784.0,0.448324]
[1726233937234,0.33503752,57785.0,57784.0,0.3618]
[1726233938431,0.295046,57785.0,57784.0,0.3618]
[1726233941137,0.295046,57785.0,57784.0,0.001]
[1726233941840,0.088523,57785.0,57784.0,0.448324]
[1726233942037,0.002,57785.0,57784.0,0.77027841]
[1726233942338,0.002,57785.0,57784.0,0.68375441]
[1726233942739,0.002,57785.0,57784.0,0.68362254]
[1726233945635,0.002,57785.0,57784.0,0.568324]
[1726233946025,0.10576055,57785.0,57784.0,1.014848]
[1726233946230,0.002,57785.0,57784.0,1.014848]
[1726233947245,0.002,57785.0,57784.0,2.220532]
[1726233947432,0.002,57785.0,57784.0,2.28962757]
[1726233947634,0.002,57785.0,57784.0,2.220532]
[1726233948028,0.002,57785.0,57784.0,2.28962757]
[1726233948434,0.002,57785.0,57784.0,2.014008]
[1726233948634,0.002,57785.0,57784.0,1.620532]
[1726233949447,0.002,57785.0,57784.0,1.67229211]
[1726233950328,0.002,57785.0,57784.0,2.27229211]
[1726233950843,0.002,57785.0,57784.0,1.67229211]
[1726233951231,0.002,57785.0,57784.0,1.15313211]
[1726233951739,0.002,57785.0,57784.0,1.620532]
[1726233952043,0.002,57785.0,57784.0,1.101372]
[1726233952239,0.002,57785.0,57784.0,1.620532]
[1726233953641,0.002,57785.0,57784.0,1.73564174]
[1726233953945,0.12,57794.0,57793.0,0.086511]
[1726233954137,0.12,57794.0,57793.0,0.4990708]
[1726233954849,0.12,57794.0,57793.0,0.447311]
[1726233955345,0.123,57794.0,57793.0,0.447311]
[1726233955545,0.123,57794.0,57793.0,0.4990708]
[1726233955745,0.128,57794.0,57793.0,0.447311]
[1726233955944,0.128,57794.0,57793.0,0.4990708]
[1726233956638,0.008,57794.0,57793.0,0.4990708]
[1726233957353,0.008,57794.0,57793.0,0.447311]
[1726233958341,0.008,57794.0,57793.0,0.51632407]
[1726233958548,0.008,57794.0,57793.0,0.447311]
[1726233960940,0.008,57794.0,57793.0,0.086511]
[1726233961141,0.008,57794.0,57793.0,0.808111]
[1726233961445,0.008,57794.0,57793.0,0.086511]
[1726233961648,0.008,57794.0,57793.0,0.808111]
[1726233965350,0.094509,57794.0,57793.0,0.808111]
[1726233966448,0.19826955,57794.0,57793.0,0.808111]
[1726233967559,0.28477855,57794.0,57793.0,0.7216]
[1726233967763,0.19826955,57794.0,57793.0,0.808111]
[1726233968460,0.094509,57794.0,57793.0,0.808111]
[1726233968663,0.094509,57794.0,57793.0,0.85984097]
[1726233969560,0.094509,57794.0,57793.0,0.808111]
[1726233971058,0.092509,57794.0,57793.0,0.808111]
[1726233971558,0.092509,57794.0,57793.0,0.85988553]
[1726233972065,0.090509,57794.0,57793.0,0.85988553]
[1726233972756,0.090509,57794.0,57793.0,0.808111]
[1726233975461,0.090509,57794.0,57793.0,0.87712407]
[1726233975662,0.13062472,57794.0,57793.0,0.808111]
[1726233976666,0.16491678,57794.0,57793.0,0.808111]
[1726233976868,0.04411572,57794.0,57793.0,0.808111]
[1726233979968,0.04411572,57794.0,57793.0,1.014622]
[1726233980781,0.10778663,57794.0,57793.0,1.101133]
[1726233980964,0.004,57794.0,57793.0,1.101133]
[1726233981273,0.004,57794.0,57793.0,2.220213]
[1726233981863,0.004,57794.0,57793.0,2.133702]
[1726233983673,0.004,57794.0,57793.0,2.24834117]
[1726233984071,0.004,57794.0,57793.0,1.64834117]
[1726233984274,0.004,57802.0,57801.0,0.086499]
[1726233984473,0.086489,57808.0,57801.0,0.4808]
[1726233984772,0.086489,57808.0,57807.0,0.44729]
[1726233984978,0.0582,57810.0,57808.0,0.086488]
[1726233985168,0.144686,57810.0,57808.0,0.086488]
[1726233985372,0.144686,57810.0,57809.0,0.086487]
[1726233986578,0.171686,57810.0,57809.0,0.086487]
[1726233987183,0.18123318,57810.0,57809.0,0.086487]
[1726233987677,0.17823318,57810.0,57809.0,0.086487]
[1726233988074,0.16523318,57810.0,57809.0,0.086487]
[1726233988274,0.17423318,57810.0,57809.0,0.086487]
[1726233989777,0.17423318,57810.0,57807.0,0.3608]
[1726233989778,0.086488,57808.0,57807.0,0.3608]
[1726233989980,0.206488,57808.0,57807.0,0.3608]
[1726233990573,0.206488,57808.0,57807.0,0.44729]
[1726233990769,0.379464,57808.0,57807.0,0.3608]
[1726233991386,1.498424,57808.0,57807.0,0.3608]
[1726233991584,0.172994,57802.0,57801.0,0.3688]
[1726233991773,0.172994,57802.0,57801.0,0.3608]
[1726233991774,0.292994,57802.0,57801.0,0.3608]
[1726233992771,0.292994,57802.0,57801.0,0.3618]
[1726233993082,0.206497,57802.0,57801.0,0.3618]
[1726233993277,0.208497,57802.0,57801.0,0.3618]
[1726233993482,0.36143483,57802.0,57801.0,0.3618]
[1726233994883,0.15493783,57802.0,57801.0,0.3618]
[1726233995385,0.09793783,57802.0,57801.0,0.448299]
[1726233998687,0.21873889,57802.0,57801.0,0.448299]
[1726233998888,0.25920956,57802.0,57801.0,0.448299]
[1726233999590,0.25923449,57802.0,57801.0,0.448299]
[1726234000983,0.13843343,57802.0,57801.0,0.448299]
[1726234001290,0.25923449,57802.0,57801.0,0.448299]
[1726234004387,0.45923449,57802.0,57801.0,0.3618]
[1726234004579,0.38548358,57802.0,57801.0,0.3618]
[1726234005686,0.29793783,57802.0,57801.0,0.3618]
[1726234006180,0.29793783,57802.0,57801.0,0.448299]
[1726234006889,0.09793783,57802.0,57801.0,0.448299]
[1726234007087,0.002,57802.0,57801.0,0.734798]
[1726234008587,0.002,57802.0,57801.0,0.534798]
[1726234012382,0.002,57802.0,57801.0,0.734798]
[1726234012799,0.002,57802.0,57801.0,0.821297]
[1726234013003,0.002,57802.0,57801.0,1.99205001]
[1726234013195,0.002,57802.0,57801.0,1.340297]
[1726234018903,0.002,57802.0,57801.0,0.821297]
[1726234020106,0.002,57802.0,57801.0,0.741297]
[1726234020814,0.04277859,57802.0,57801.0,0.741297]
[1726234022508,0.04278252,57802.0,57801.0,0.741297]
[1726234024903,0.16369065,57802.0,57801.0,0.741297]
[1726234026308,0.04278252,57802.0,57801.0,0.741297]
[1726234028708,0.002,57802.0,57801.0,0.95912982]
[1726234029308,0.002,57802.0,57801.0,0.85561787]
[1726234030019,0.002,57802.0,57801.0,1.21641787]
[1726234030405,0.002,57802.0,57801.0,2.47158355]
[1726234030605,0.0622,57810.0,57809.0,0.172974]
[1726234030808,0.0582,57810.0,57809.0,0.76784365]
[1726234031006,0.0489,57817.0,57814.0,0.086479]
[1726234031207,0.1022,57817.0,57814.0,0.6362492]
[1726234031507,0.1022,57817.0,57816.0,0.172952]
[1726234031904,0.09998429,57823.0,57816.0,0.172952]
[1726234031905,0.01351829,57823.0,57816.0,0.51888]
[1726234032107,0.0533,57824.0,57823.0,0.086466]
[1726234032309,0.0533,57824.0,57823.0,0.447266]
[1726234033512,0.0613,57824.0,57823.0,0.447266]
[1726234034713,0.0703,57824.0,57823.0,0.448266]
[1726234035828,0.05877593,57824.0,57823.0,0.534732]
[1726234036016,0.05877593,57824.0,57823.0,1.06283915]
[1726234036313,0.103362,57828.0,57826.0,0.086461]
[1726234036503,0.103362,57829.0,57827.0,0.20646]
[1726234036709,0.103362,57830.0,57829.0,0.086457]
[1726234036904,0.0501,57837.0,57834.0,0.08645]
[1726234037217,0.051,57840.0,57839.0,0.086442]
[1726234037514,0.051,57840.0,57839.0,0.567242]
[1726234037715,0.1053,57845.0,57844.0,0.086435]
[1726234038016,0.14367962,57845.0,57844.0,0.567235]
[1726234038206,0.055,57850.0,57849.0,0.086427]
[1726234038408,0.09337498,57850.0,57849.0,0.447227]
[1726234038605,0.10281846,57850.0,57849.0,0.447227]
[1726234039417,0.06044348,57850.0,57849.0,0.447227]
[1726234039713,0.07044348,57850.0,57849.0,0.448227]
[1726234040119,0.07044348,57850.0,57849.0,0.3618]
[1726234040120,0.15686948,57850.0,57849.0,0.3618]
[1726234040317,0.07044348,57850.0,57849.0,0.3618]
[1726234040619,0.15686948,57850.0,57849.0,0.3618]
[1726234040918,0.16886948,57850.0,57849.0,0.3628]
[1726234041317,0.2717793,57850.0,57849.0,0.3628]
[1726234041620,0.16886948,57850.0,57849.0,0.3628]
[1726234042305,0.27174099,57850.0,57849.0,0.3628]
[1726234043220,0.16886948,57850.0,57849.0,0.3628]
[1726234043825,0.16886948,57850.0,57849.0,0.002]
[1726234044122,0.16886948,57850.0,57849.0,0.3628]
[1726234045807,0.16886948,57850.0,57849.0,0.002]
[1726234046013,0.16886948,57850.0,57849.0,0.3628]
[1726234047212,0.25529548,57850.0,57849.0,0.002]
[1726234047420,1.20104348,57850.0,57838.0,0.004]
[1726234047619,0.086439,57841.0,57840.0,0.004]
[1726234047822,0.086439,57841.0,57837.0,0.3608]
[1726234048117,0.2,57838.0,57837.0,0.3608]
[1726234048323,0.372888,57838.0,57837.0,0.3608]
[1726234049414,0.286444,57838.0,57837.0,0.3608]
[1726234050422,0.086444,57838.0,57837.0,0.3628]
[1726234050622,0.137544,57838.0,57837.0,0.3628]
[1726234050832,0.137544,57838.0,57837.0,0.3608]
[1726234051120,0.137544,57838.0,57837.0,0.3628]
[1726234053121,0.137544,57838.0,57837.0,0.449245]
[1726234053122,0.1471014,57838.0,57837.0,0.449245]
[1726234053311,0.0511,57838.0,57837.0,0.449245]
[1726234053512,0.086442,57839.0,57838.0,0.086442]
[1726234053717,0.086438,57842.0,57841.0,0.086437]
[1726234053923,0.086438,57842.0,57841.0,0.286437]
[1726234054527,0.09565508,57842.0,57841.0,0.086437]
[1726234055117,0.09865508,57842.0,57841.0,0.086437]
[1726234056033,0.10265508,57842.0,57841.0,0.086437]
[1726234057924,0.10265508,57842.0,57841.0,0.447237]
[1726234060931,0.007,57842.0,57841.0,0.647237]
[1726234063538,0.007,57842.0,57841.0,1.007237]
[1726234064731,0.007,57842.0,57841.0,0.646437]
[1726234064928,0.007,57842.0,57841.0,1.007237]
[1726234065855,0.04895683,57842.0,57841.0,1.007237]
[1726234066242,0.16927563,57842.0,57841.0,1.007237]
[1726234067744,0.16927563,57842.0,57841.0,0.646437]
[1726234068045,0.16927563,57842.0,57841.0,1.007237]
[1726234068632,0.16927563,57842.0,57841.0,0.447237]
[1726234068842,0.25571363,57842.0,57841.0,0.3608]
[1726234069244,0.18414681,57842.0,57841.0,0.3608]
[1726234069646,0.18414681,57842.0,57841.0,0.447239]
[1726234069841,0.16975428,57842.0,57841.0,0.447239]
[1726234070140,0.04901898,57842.0,57841.0,0.447239]
[1726234070345,0.25626433,57842.0,57841.0,0.447239]
[1726234070544,0.13545698,57842.0,57841.0,0.447239]
[1726234071245,0.18423977,57842.0,57841.0,0.447239]
[1726234071452,0.13545698,57842.0,57841.0,0.447239]
[1726234074051,0.093438,57842.0,57841.0,0.447239]
[1726234075046,0.007,57842.0,57841.0,0.447239]
[1726234075453,0.007,57842.0,57841.0,0.49895656]
[1726234076743,0.093438,57842.0,57841.0,0.49895656]
[1726234076940,0.007,57842.0,57841.0,0.447239]
[1726234078247,0.007,57842.0,57841.0,0.49895656]
[1726234078856,0.007,57842.0,57841.0,0.447239]
[1726234080152,0.007,57842.0,57841.0,0.49895656]
[1726234080350,0.093438,57842.0,57841.0,0.49895656]
[1726234080743,0.007,57842.0,57841.0,0.49895656]
[1726234081055,0.007,57842.0,57841.0,0.447239]
[1726234081256,0.007,57842.0,57841.0,0.49896159]
[1726234081450,0.007,57842.0,57841.0,0.447239]
[1726234081653,0.007,57842.0,57841.0,0.49896321]
[1726234081861,0.093438,57842.0,57841.0,0.447239]
[1726234082055,0.093438,57842.0,57841.0,0.3608]
[1726234082056,0.266314,57842.0,57841.0,0.3608]
[1726234082562,0.372014,57842.0,57841.0,0.3608]
[1726234083151,0.38914528,57842.0,57841.0,0.3608]
[1726234083746,0.38914528,57842.0,57841.0,0.447239]
[1726234083948,0.285576,57842.0,57841.0,0.3608]
[1726234084147,0.38914528,57842.0,57841.0,0.3608]
[1726234084356,0.372014,57842.0,57841.0,0.3608]
[1726234085554,0.38923497,57842.0,57841.0,0.447239]
[1726234086064,0.199138,57842.0,57841.0,0.447239]
[1726234088959,0.28992138,57842.0,57841.0,0.447239]
[1726234090362,0.28992138,57842.0,57841.0,0.086439]
[1726234090866,0.42814468,57842.0,57841.0,0.086439]
[1726234091370,0.28992138,57842.0,57841.0,0.086439]
[1726234092860,0.28956165,57842.0,57841.0,0.086439]
[1726234095363,0.09742365,57842.0,57841.0,0.447239]
[1726234095556,0.007,57842.0,57841.0,0.647239]
[1726234095761,0.04884252,57842.0,57841.0,0.733678]
[1726234095953,0.007,57842.0,57841.0,0.733678]
[1726234096966,0.007,57842.0,57841.0,0.647239]
[1726234097961,0.007,57842.0,57841.0,1.007239]
[1726234105962,0.007,57842.0,57841.0,1.05895691]
[1726234106161,0.007,57842.0,57841.0,1.007239]
[1726234108064,0.007,57842.0,57841.0,0.927239]
[1726234108772,0.007,57842.0,57841.0,0.567239]
[1726234111063,0.04889661,57842.0,57841.0,0.567239]
[1726234111775,0.04889661,57842.0,57841.0,0.653678]
[1726234112179,0.04906875,57842.0,57841.0,0.653678]
[1726234112479,0.007,57842.0,57841.0,1.532318]
[1726234112663,0.11059746,57842.0,57841.0,1.532318]
[1726234113068,0.11059746,57842.0,57841.0,1.013678]
[1726234113268,0.23059746,57842.0,57841.0,0.807239]
[1726234113469,0.127,57842.0,57841.0,0.447239]
[1726234113665,0.007,57842.0,57841.0,0.447239]
[1726234114365,0.04885222,57842.0,57841.0,0.447239]
[1726234114568,0.13529022,57842.0,57841.0,0.447239]
[1726234114776,0.17289,57837.0,57836.0,0.001]
[1726234114973,0.17289,57837.0,57829.0,0.3608]
[1726234114974,0.09048375,57837.0,57829.0,0.3688]
[1726234115273,0.51868,57841.0,57829.0,0.3608]
[1726234115274,0.206455,57830.0,57829.0,0.3608]
[1726234115575,0.24832533,57830.0,57829.0,0.3608]
[1726234116078,0.32832533,57830.0,57829.0,0.3698]
[1726234116276,0.44916814,57830.0,57829.0,0.3698]
[1726234116465,0.3763269,57830.0,57829.0,0.3698]
[1726234116872,0.3783269,57830.0,57829.0,0.3768]
[1726234117380,0.45112151,57830.0,57829.0,0.3768]
[1726234117976,0.287455,57830.0,57829.0,0.3718]
[1726234118784,0.286455,57830.0,57829.0,0.3668]
[1726234119372,0.286455,57830.0,57829.0,0.3628]
[1726234119571,0.286455,57830.0,57829.0,0.3668]
[1726234119776,0.37291,57830.0,57829.0,0.3668]
[1726234119975,0.37291,57830.0,57829.0,0.006]
[1726234120492,1.49167,57830.0,57829.0,0.006]
[1726234120980,1.50132029,57830.0,57829.0,0.006]
[1726234122084,0.90132029,57830.0,57829.0,0.006]
[1726234122675,0.38256029,57830.0,57829.0,0.006]
[1726234123190,0.18256029,57830.0,57829.0,0.006]
[1726234123379,0.38256029,57830.0,57829.0,0.006]
[1726234125381,0.46901529,57830.0,57829.0,0.006]
[1726234131376,0.46901529,57830.0,57822.0,0.008]
[1726234131377,0.259398,57823.0,57822.0,0.008]
[1726234131574,0.086475,57817.0,57816.0,0.447276]
[1726234131778,0.17295,57817.0,57816.0,0.447276]
[1726234131977,0.086475,57817.0,57816.0,0.3608]
[1726234132183,0.27435,57817.0,57816.0,0.3608]
[1726234132577,0.187875,57817.0,57816.0,0.3608]
[1726234132778,0.27435,57817.0,57816.0,0.3608]
[1726234132980,0.187875,57817.0,57816.0,0.3608]
[1726234133176,0.187875,57817.0,57816.0,0.447276]
[1726234133375,0.187875,57817.0,57816.0,0.453276]
[1726234133376,0.138175,57817.0,57816.0,0.453276]
[1726234134187,0.138175,57817.0,57816.0,0.457276]
[1726234135186,0.087475,57817.0,57816.0,0.457276]
[1726234137495,0.09700077,57817.0,57816.0,0.457276]
[1726234142212,0.18347577,57817.0,57816.0,0.3708]
[1726234142411,0.18347577,57817.0,57816.0,0.457276]
[1726234142412,0.09700077,57817.0,57816.0,0.457276]
[1726234143312,0.18347577,57817.0,57816.0,0.3708]
[1726234143513,0.63075077,57817.0,57816.0,0.01]
[1726234144615,0.259452,57811.0,57810.0,0.3608]
[1726234144809,0.8,57811.0,57805.0,0.70346]
[1726234145006,0.372982,57806.0,57805.0,0.70254]
[1726234145404,1.578473,57806.0,57805.0,0.70254]
[1726234145714,0.086502,57799.0,57798.0,0.008]
[1726234145918,0.086502,57799.0,57793.0,0.086511]
[1726234145919,0.086505,57797.0,57793.0,0.086511]
[1726234146712,0.2,57802.0,57796.0,0.447306]
[1726234146907,0.001,57799.0,57798.0,0.089502]
[1726234147304,0.2,57802.0,57798.0,0.086502]
[1726234147709,0.086502,57799.0,57798.0,0.086502]
[1726234147911,0.086497,57802.0,57801.0,0.086499]
[1726234148115,0.00967348,57805.0,57804.0,0.086494]
[1726234148318,0.086493,57805.0,57804.0,0.086494]
[1726234148513,0.086496,57803.0,57802.0,0.10387277]
[1726234149825,0.086496,57803.0,57802.0,0.0522]
[1726234150210,0.086496,57803.0,57802.0,0.0562]
[1726234150516,0.087496,57803.0,57802.0,0.0556611]
[1726234151622,0.086497,57802.0,57801.0,0.4124611]
[1726234152306,0.086499,57801.0,57800.0,0.0516611]
[1726234152510,0.086499,57801.0,57796.0,0.52557895]
[1726234152511,0.286499,57801.0,57799.0,0.0516611]
[1726234152720,0.2865,57800.0,57798.0,0.0516611]
[1726234152928,0.086502,57799.0,57798.0,0.0516611]
[1726234153219,0.086502,57799.0,57796.0,0.3608]
[1726234153517,0.086505,57797.0,57796.0,0.3608]
[1726234154311,0.086505,57797.0,57796.0,0.41243286]
[1726234154523,0.17301,57797.0,57796.0,0.3608]
[1726234154914,0.17401,57797.0,57796.0,0.3608]
[1726234155416,0.260515,57797.0,57796.0,0.3608]
[1726234155621,0.260515,57797.0,57791.0,0.07695328]
[1726234155622,0.086512,57792.0,57791.0,0.008]
[1726234155817,0.086515,57790.0,57789.0,0.3608]
[1726234156011,0.286515,57790.0,57789.0,0.3608]
[1726234156219,0.37303,57790.0,57789.0,0.3608]
[1726234157416,0.087515,57790.0,57789.0,0.3608]
[1726234157722,0.087515,57790.0,57789.0,0.5608]
[1726234157926,0.087515,57790.0,57789.0,0.3608]
[1726234158317,0.087515,57790.0,57789.0,0.447317]
[1726234158521,0.087515,57790.0,57789.0,0.3608]
[1726234158723,0.088515,57790.0,57789.0,0.3698]
[1726234158922,0.088515,57790.0,57789.0,0.456317]
[1726234159829,0.088515,57790.0,57789.0,0.3698]
[1726234160014,0.17503,57790.0,57789.0,0.3698]
[1726234160214,0.261545,57790.0,57789.0,0.3698]
[1726234160421,0.086523,57785.0,57784.0,0.008]
[1726234160629,1.1608,57785.0,57777.0,0.004]
[1726234160926,0.173076,57775.0,57774.0,0.004]
[1726234161120,0.173082,57773.0,57772.0,0.41243637]
[1726234161317,0.173082,57773.0,57772.0,0.3608]
[1726234161716,1.292362,57773.0,57772.0,0.3608]
[1726234161916,1.292362,57773.0,57767.0,0.07295328]
[1726234161917,0.086548,57768.0,57767.0,0.004]
[1726234162113,0.086553,57765.0,57764.0,0.3608]
[1726234162315,0.373106,57765.0,57764.0,0.3608]
[1726234162511,0.364106,57765.0,57764.0,0.3608]
[1726234162717,0.086562,57759.0,57758.0,0.3608]
[1726234162915,0.2,57761.0,57757.0,0.05163637]
[1726234163116,0.086563,57758.0,57756.0,0.13820237]
[1726234163324,0.086565,57757.0,57755.0,0.13820337]
[1726234163517,0.2,57761.0,57755.0,0.13820337]
[1726234163717,0.08656,57760.0,57758.0,0.3608]
[1726234164023,0.2,57765.0,57758.0,0.3608]
[1726234164225,0.004,57768.0,57763.0,0.3608]
[1726234164526,0.0521,57772.0,57771.0,0.086544]
[1726234164724,0.08654,57774.0,57771.0,0.086544]
[1726234165324,0.086541,57773.0,57771.0,0.086544]
[1726234165827,0.20949817,57776.0,57771.0,0.086544]
[1726234165828,0.001,57772.0,57771.0,0.086544]
[1726234166129,0.001,57772.0,57771.0,0.446544]
[1726234166527,0.001,57773.0,57771.0,0.446544]
[1726234166827,0.001,57772.0,57771.0,0.446544]
[1726234167221,0.001,57772.0,57771.0,0.086544]
[1726234167624,0.001,57773.0,57771.0,0.086544]
[1726234167821,0.002,57773.0,57771.0,0.086544]
[1726234168223,0.001,57772.0,57769.0,0.0459]
[1726234168431,0.086547,57769.0,57768.0,0.3608]
[1726234168630,0.286547,57769.0,57768.0,0.3608]
[1726234169821,0.286547,57769.0,57768.0,0.447348]
[1726234170021,0.001,57772.0,57771.0,0.086544]
[1726234170540,0.2,57772.0,57768.0,0.448228]
[1726234170719,0.2,57772.0,57768.0,0.447348]
[1726234171124,0.086547,57769.0,57768.0,0.447348]
[1726234171325,0.086547,57769.0,57768.0,0.3608]
[1726234172528,0.087547,57769.0,57768.0,0.3608]
[1726234172725,0.088547,57769.0,57768.0,0.3608]
[1726234173136,0.088547,57769.0,57768.0,0.447348]
[1726234173330,0.088547,57769.0,57768.0,0.3608]
[1726234175535,0.08655,57767.0,57764.0,0.05163637]
[1726234175739,0.28655,57767.0,57764.0,0.05163637]
[1726234175950,0.086554,57764.0,57763.0,0.447356]
[1726234176246,0.086554,57764.0,57763.0,0.086556]
[1726234176432,0.2,57767.0,57760.0,0.41238501]
[1726234176433,0.086559,57761.0,57760.0,0.41238501]
[1726234176834,0.086559,57761.0,57760.0,0.3608]
[1726234177037,0.086559,57761.0,57760.0,0.41238501]
[1726234177339,0.086559,57761.0,57760.0,0.3608]
[1726234177645,0.087559,57761.0,57760.0,0.3608]
[1726234178231,0.087559,57761.0,57760.0,0.08656]
[1726234178539,0.088559,57761.0,57760.0,0.08656]
[1726234180543,0.002,57761.0,57760.0,0.08656]